bitfinex/quotes_BTCUSD_20250607
["timestamp","ask_amount","ask_price","bid_price","bid_amount"]
[1749266595410,0.0207,104820.0,104810.0,2.8289097]
[1749266596158,0.0207,104820.0,104810.0,1.72689594]
[1749266596386,0.0207,104820.0,104810.0,2.8289097]
[1749266598096,0.0207,104820.0,104810.0,3.0216097]
[1749266607130,0.0207,104820.0,104810.0,2.8289097]
[1749266608143,0.0207,104820.0,104810.0,2.92348919]
[1749266608346,0.0207,104820.0,104810.0,2.91948919]
[1749266608762,0.0207,104820.0,104810.0,2.91548919]
[1749266608895,0.0207,104820.0,104810.0,2.92648919]
[1749266609097,0.0207,104820.0,104810.0,2.97648919]
[1749266609320,0.01944541,104820.0,104810.0,2.97648919]
[1749266609532,0.01944541,104820.0,104810.0,3.52749607]
[1749266610268,0.01944541,104820.0,104810.0,2.97648919]
[1749266610451,0.01944541,104820.0,104810.0,2.59332919]
[1749266610852,0.05004541,104820.0,104810.0,1.92078146]
[1749266611056,0.05004541,104820.0,104810.0,2.20884197]
[1749266611396,0.05004541,104820.0,104810.0,2.18017797]
[1749266611978,0.05004541,104820.0,104810.0,2.17069938]
[1749266613307,0.05004541,104820.0,104810.0,2.17043878]
[1749266614325,0.05004541,104820.0,104810.0,2.18012222]
[1749266614559,0.05004541,104820.0,104810.0,2.17043878]
[1749266616207,0.05004541,104820.0,104810.0,2.16969511]
[1749266617613,0.05004541,104820.0,104810.0,2.17948372]
[1749266618439,0.05004541,104820.0,104810.0,2.16969511]
[1749266620537,0.05004541,104820.0,104810.0,1.61894883]
[1749266620773,0.05004541,104820.0,104810.0,1.20762063]
[1749266620965,0.05004541,104820.0,104810.0,1.59022063]
[1749266621325,0.05004541,104820.0,104810.0,0.86762063]
[1749266621556,0.05004541,104820.0,104810.0,1.25022063]
[1749266621914,0.05004541,104820.0,104810.0,0.86762063]
[1749266622120,0.05004541,104820.0,104810.0,1.25022063]
[1749266622315,0.05958475,104820.0,104810.0,1.25022063]
[1749266622525,0.05004541,104820.0,104810.0,1.25022063]
[1749266622728,0.05004541,104820.0,104810.0,1.24422063]
[1749266622953,0.05004541,104820.0,104810.0,1.23922063]
[1749266623178,0.05004541,104820.0,104810.0,1.24222063]
[1749266623507,0.05004541,104820.0,104810.0,1.23922063]
[1749266623746,0.05004541,104820.0,104810.0,1.24022063]
[1749266623933,0.05004541,104820.0,104810.0,1.24122063]
[1749266633499,0.05004541,104820.0,104810.0,1.79196691]
[1749266634108,0.03474541,104820.0,104810.0,1.79196691]
[1749266634407,0.01944541,104820.0,104810.0,1.79196691]
[1749266635288,0.01944541,104820.0,104810.0,2.14650776]
[1749266636165,0.01944541,104820.0,104810.0,2.17564486]
[1749266636364,0.01944541,104820.0,104810.0,2.73339114]
[1749266636602,0.01944541,104820.0,104810.0,2.18264486]
[1749266637428,0.01944541,104820.0,104810.0,2.73339114]
[1749266637651,0.01944541,104820.0,104810.0,2.83339114]
[1749266638411,0.01944541,104820.0,104810.0,2.92797063]
[1749266639389,0.01944541,104820.0,104810.0,3.11867063]
[1749266639787,0.01944541,104820.0,104810.0,3.12667063]
[1749266643783,0.00013696,104840.0,104830.0,0.58094259]
[1749266644047,0.00013696,104840.0,104830.0,1.66052835]
[1749266644249,0.00013696,104840.0,104830.0,1.75513029]
[1749266644365,0.00013696,104840.0,104830.0,1.77143029]
[1749266644813,0.00013696,104840.0,104830.0,1.67682835]
[1749266645036,0.00013696,104840.0,104830.0,2.27757463]
[1749266645246,0.00013696,104840.0,104830.0,2.00166835]
[1749266645684,0.00013696,104840.0,104830.0,2.00666835]
[1749266646187,0.00013696,104840.0,104830.0,2.00166835]
[1749266646605,0.00013696,104840.0,104830.0,2.01466835]
[1749266648211,0.00013696,104840.0,104830.0,2.56541463]
[1749266650293,0.00013696,104840.0,104830.0,3.26541463]
[1749266651971,0.0165,104870.0,104860.0,0.54026637]
[1749266652186,0.0165,104870.0,104860.0,1.82662792]
[1749266652187,0.01663706,104870.0,104860.0,1.82662792]
[1749266652570,0.03223706,104870.0,104860.0,1.82662792]
[1749266652816,0.03223706,104870.0,104860.0,1.83597932]
[1749266653190,0.03223706,104870.0,104860.0,1.83997932]
[1749266653422,0.03223706,104870.0,104860.0,1.85452017]
[1749266658815,0.03083706,104870.0,104860.0,0.92141389]
[1749266659023,0.03083706,104870.0,104860.0,1.85440017]
[1749266660616,0.00013706,104870.0,104860.0,2.64784645]
[1749266661033,0.00013706,104870.0,104860.0,2.45052645]
[1749266661255,0.00013706,104870.0,104860.0,2.45752645]
[1749266661460,0.00013706,104870.0,104860.0,2.36768645]
[1749266661668,0.00013706,104870.0,104860.0,2.17498645]
[1749266661876,0.00013706,104870.0,104860.0,2.19749602]
[1749266662082,0.00013706,104870.0,104860.0,2.22779295]
[1749266662301,0.01209736,104880.0,104870.0,0.6738589]
[1749266662521,4e-05,104900.0,104890.0,1.77530964]
[1749266662724,4e-05,104900.0,104890.0,2.20133869]
[1749266662928,4e-05,104900.0,104890.0,1.62608284]
[1749266663136,4e-05,104900.0,104890.0,1.65472184]
[1749266663754,4e-05,104900.0,104890.0,1.68278424]
[1749266663980,4e-05,104900.0,104890.0,1.69078424]
[1749266664185,4e-05,104900.0,104890.0,1.13203796]
[1749266664397,4e-05,104900.0,104890.0,1.68278424]
[1749266664821,8.789e-05,104900.0,104890.0,1.68278424]
[1749266665259,8.789e-05,104900.0,104890.0,2.30058424]
[1749266665666,8.789e-05,104900.0,104890.0,2.30758424]
[1749266665880,8.789e-05,104900.0,104890.0,1.91262424]
[1749266666117,0.03168789,104900.0,104890.0,2.30382424]
[1749266666363,0.03168789,104900.0,104890.0,1.75303796]
[1749266666575,0.03168789,104900.0,104890.0,2.30378424]
[1749266667802,0.03168789,104900.0,104890.0,2.25378424]
[1749266668007,0.03168789,104900.0,104890.0,2.30378424]
[1749266669411,0.03168789,104900.0,104890.0,2.25378424]
[1749266671985,0.03168789,104900.0,104890.0,1.24733711]
[1749266672141,0.03168789,104900.0,104890.0,2.18892339]
[1749266672335,0.03168789,104900.0,104890.0,2.23892339]
[1749266672943,0.03168789,104900.0,104890.0,2.18892339]
[1749266673207,0.03168789,104900.0,104890.0,2.25346424]
[1749266677107,0.03018789,104900.0,104890.0,2.25146424]
[1749266678041,0.03018789,104900.0,104890.0,2.44416424]
[1749266681519,0.03018789,104900.0,104890.0,2.05332424]
[1749266681747,0.03018789,104900.0,104890.0,2.44384424]
[1749266683935,0.03018789,104900.0,104890.0,2.39364424]
[1749266684132,0.03018789,104900.0,104890.0,2.44364424]
[1749266685366,0.03018789,104900.0,104890.0,1.89289796]
[1749266685591,0.03018789,104900.0,104890.0,1.45257796]
[1749266685827,0.03018789,104900.0,104890.0,2.03906339]
[1749266686153,0.03018789,104900.0,104890.0,2.37906339]
[1749266686982,0.03018789,104900.0,104890.0,2.37306339]
[1749266687371,0.03018789,104900.0,104890.0,2.37806339]
[1749266687935,0.03018789,104900.0,104890.0,2.37106339]
[1749266688067,0.03018789,104900.0,104890.0,2.37606339]
[1749266689816,0.03018789,104900.0,104890.0,2.18336339]
[1749266690231,0.03018789,104900.0,104890.0,1.63261711]
[1749266690439,0.03018789,104900.0,104890.0,2.18336339]
[1749266691222,0.03018789,104900.0,104890.0,2.18332339]
[1749266696531,0.03018789,104900.0,104890.0,2.19786424]
[1749266698434,0.01791026,104940.0,104930.0,0.02858938]
[1749266698644,0.57832863,104940.0,104930.0,0.95259211]
[1749266698855,0.57832884,104940.0,104930.0,0.95259211]
[1749266699056,0.61925755,104940.0,104930.0,0.95259211]
[1749266699261,0.60972884,104940.0,104930.0,0.95259211]
[1749266699691,0.05898256,104940.0,104930.0,0.95259211]
[1749266699899,0.60972884,104940.0,104930.0,0.95259211]
[1749266700309,0.60020041,104940.0,104930.0,0.95259211]
[1749266700540,0.58234994,104940.0,104930.0,0.95259211]
[1749266700947,0.03160366,104940.0,104930.0,0.95259211]
[1749266701632,0.58234994,104940.0,104930.0,0.95259211]
[1749266702251,0.03160366,104940.0,104930.0,1.50333839]
[1749266702467,0.03160366,104940.0,104930.0,0.95259211]
[1749266702687,0.03160366,104940.0,104930.0,0.98122711]
[1749266702898,0.03160366,104940.0,104930.0,1.53197339]
[1749266703550,0.03160366,104940.0,104930.0,1.53397339]
[1749266703760,0.03160366,104940.0,104930.0,0.98322711]
[1749266703986,0.03160366,104940.0,104930.0,0.59338711]
[1749266704191,0.03160366,104940.0,104930.0,0.98574711]
[1749266706210,0.03160366,104940.0,104930.0,0.59538711]
[1749266706356,0.03160366,104940.0,104930.0,0.98574711]
[1749266708437,0.03160366,104940.0,104930.0,0.68790711]
[1749266708630,0.03160366,104940.0,104930.0,0.98558711]
[1749266709964,0.03160366,104940.0,104930.0,0.86998711]
[1749266710163,0.03160366,104940.0,104930.0,1.26026711]
[1749266711551,0.03160366,104940.0,104930.0,0.86998711]
[1749266711757,0.58234994,104940.0,104930.0,0.84135211]
[1749266711936,0.58234994,104940.0,104930.0,1.23167211]
[1749266712159,0.58234994,104940.0,104930.0,0.84135211]
[1749266712360,0.58234994,104940.0,104930.0,1.23163211]
[1749266712781,0.60140726,104940.0,104930.0,0.84135211]
[1749266712994,0.60140726,104940.0,104930.0,1.23163211]
[1749266712995,0.05066089,104940.0,104930.0,1.23163211]
[1749266713198,0.58234994,104940.0,104930.0,1.23163211]
[1749266713399,0.59187846,104940.0,104930.0,1.23163211]
[1749266714157,0.58234994,104940.0,104930.0,1.23163211]
[1749266715294,0.59187837,104940.0,104930.0,1.23163211]
[1749266715938,0.58234994,104940.0,104930.0,1.23163211]
[1749266716558,0.59187846,104940.0,104930.0,1.23163211]
[1749266717213,0.59187846,104940.0,104930.0,0.93387211]
[1749266717447,0.61093633,104940.0,104930.0,0.83182259]
[1749266717649,1.16168261,104940.0,104930.0,0.92434259]
[1749266717848,0.61093633,104940.0,104930.0,1.24160172]
[1749266718636,0.62046549,104940.0,104930.0,1.24160172]
[1749266718816,0.62046549,104940.0,104930.0,1.24156172]
[1749266720236,0.61093633,104940.0,104930.0,1.24156172]
[1749266721116,0.62046549,104940.0,104930.0,1.24156172]
[1749266721534,0.62046549,104940.0,104930.0,1.23203211]
[1749266721752,0.61093633,104940.0,104930.0,1.23203211]
[1749266721961,0.62046549,104940.0,104930.0,1.23203211]
[1749266722174,0.62999474,104940.0,104930.0,1.23203229]
[1749266722366,0.62046549,104940.0,104930.0,1.2415619]
[1749266722572,0.62046549,104940.0,104930.0,1.25109142]
[1749266722778,0.61093633,104940.0,104930.0,1.25109142]
[1749266722985,0.62999474,104940.0,104930.0,1.2415619]
[1749266723196,0.81105058,104940.0,104930.0,1.22250259]
[1749266723368,1.34273954,104940.0,104930.0,1.10664325]
[1749266723603,1.34273954,104940.0,104930.0,1.12570321]
[1749266723791,1.34273954,104940.0,104930.0,1.1257033]
[1749266724411,1.34273954,104940.0,104930.0,1.14276298]
[1749266724805,1.34273954,104940.0,104930.0,1.13323319]
[1749266725018,1.34273954,104940.0,104930.0,1.13223319]
[1749266725224,1.34273954,104940.0,104930.0,1.13323319]
[1749266725427,0.05066189,104940.0,104930.0,1.1522925]
[1749266725630,1.15453543,104940.0,104930.0,1.1522925]
[1749266725836,1.1712125,104940.0,104930.0,1.1522925]
[1749266726799,1.1712125,104940.0,104930.0,1.15229268]
[1749266727005,1.36179759,104940.0,104930.0,1.14276298]
[1749266727230,1.36179759,104940.0,104930.0,1.15229268]
[1749266727429,1.36179759,104940.0,104930.0,1.15229222]
[1749266727639,1.16168325,104940.0,104930.0,1.15229222]
[1749266727787,1.1712125,104940.0,104930.0,1.15229222]
[1749266729705,0.06971994,104940.0,104930.0,1.15229222]
[1749266729909,1.17359384,104940.0,104930.0,1.15229222]
[1749266730109,1.1712125,104940.0,104930.0,1.15229222]
[1749266731444,1.1712125,104940.0,104930.0,1.14276261]
[1749266731649,1.1712125,104940.0,104930.0,1.15229222]
[1749266731847,0.06971994,104940.0,104930.0,1.14276261]
[1749266732051,1.17359384,104940.0,104930.0,1.15229213]
[1749266732272,1.34273972,104940.0,104930.0,0.002]
[1749266732458,1.34273972,104940.0,104930.0,0.9148]
[1749266732699,1.34273972,104940.0,104930.0,0.92433016]
[1749266732906,1.34273972,104940.0,104930.0,1.13399327]
[1749266734534,1.34273972,104940.0,104930.0,1.13399346]
[1749266735357,1.34273972,104940.0,104930.0,0.9148]
[1749266735557,1.33321056,104940.0,104930.0,0.9148]
[1749266737146,1.34151632,104940.0,104930.0,0.92433016]
[1749266737519,1.32368131,104940.0,104930.0,0.92433016]
[1749266737686,1.34151636,104940.0,104930.0,0.92433016]
[1749266738421,1.34151593,104940.0,104930.0,0.64973016]
[1749266738780,1.32368131,104940.0,104930.0,0.6402]
[1749266738984,1.34152522,104940.0,104930.0,0.6402]
[1749266740109,1.68152522,104940.0,104930.0,0.24916]
[1749266740300,5.63480056,104940.0,104930.0,0.63964]
[1749266740500,5.63480133,104940.0,104930.0,0.63964]
[1749266741174,5.63479942,104940.0,104930.0,0.63864]
[1749266741374,5.63480437,104940.0,104930.0,0.63864]
[1749266742208,5.63480437,104940.0,104930.0,0.63764]
[1749266742577,5.63480436,104940.0,104930.0,0.63764]
[1749266742774,5.6102649,104940.0,104930.0,0.63764]
[1749266743003,5.63480812,104940.0,104930.0,0.63764]
[1749266743583,5.6169585,104940.0,104930.0,0.63764]
[1749266743850,5.63480186,104940.0,104930.0,0.63764]
[1749266744471,5.62810996,104940.0,104930.0,0.63764]
[1749266744672,5.61695679,104940.0,104930.0,0.63764]
[1749266744871,5.6102649,104940.0,104930.0,0.63764]
[1749266745075,5.63480272,104940.0,104930.0,0.63764]
[1749266748210,5.63479819,104940.0,104930.0,0.63764]
[1749266748413,5.62810606,104940.0,104930.0,0.63764]
[1749266748538,5.63479649,104940.0,104930.0,0.63764]
[1749266749120,5.63479429,104940.0,104930.0,0.63764]
[1749266749517,5.63479429,104940.0,104930.0,0.6374]
[1749266749719,5.63479455,104940.0,104930.0,0.6374]
[1749266749923,5.63479369,104940.0,104930.0,0.6374]
[1749266750343,5.63479369,104940.0,104930.0,0.63736]
[1749266750546,5.63479209,104940.0,104930.0,0.63736]
[1749266751153,5.61695431,104940.0,104930.0,0.63736]
[1749266751311,5.63479274,104940.0,104930.0,0.63736]
[1749266751667,5.73119222,104940.0,104930.0,0.63736]
[1749266752170,4.62969966,104940.0,104930.0,0.63736]
[1749266752376,5.73119222,104940.0,104930.0,0.63736]
[1749266752938,5.73119169,104940.0,104930.0,0.63736]
[1749266753141,5.73119149,104940.0,104930.0,0.63736]
[1749266753345,5.71335359,104940.0,104930.0,0.63736]
[1749266753769,5.73119149,104940.0,104930.0,0.63736]
[1749266754148,5.73119044,104940.0,104930.0,0.63736]
[1749266754761,5.73119034,104940.0,104930.0,0.63736]
[1749266754966,5.72450201,104940.0,104930.0,0.63736]
[1749266755168,5.73119112,104940.0,104930.0,0.63736]
[1749266756413,5.73119061,104940.0,104930.0,0.63736]
[1749266756618,5.73119029,104940.0,104930.0,0.63736]
[1749266757045,5.73119028,104940.0,104930.0,0.63736]
[1749266757696,5.73119028,104940.0,104930.0,0.33964]
[1749266757826,5.73119028,104940.0,104930.0,0.63676]
[1749266758229,5.73119087,104940.0,104930.0,0.63676]
[1749266759495,5.73119131,104940.0,104930.0,0.63676]
[1749266760027,5.73119407,104940.0,104930.0,0.63676]
[1749266760409,5.73119407,104940.0,104900.0,0.2096816]
[1749266760410,0.25053415,104910.0,104900.0,0.2096816]
[1749266760546,0.80128043,104910.0,104900.0,1.1212016]
[1749266760753,0.8108124,104910.0,104900.0,1.1212416]
[1749266760953,1.36155868,104910.0,104900.0,0.83357412]
[1749266761171,1.36155868,104910.0,104900.0,1.14034655]
[1749266761582,1.35202743,104910.0,104900.0,1.14434655]
[1749266761783,0.61064156,104910.0,104900.0,1.1538788]
[1749266762026,0.61064156,104910.0,104900.0,1.1498788]
[1749266762929,0.61064156,104910.0,104900.0,1.1538788]
[1749266763068,0.61064147,104910.0,104900.0,1.1498788]
[1749266763273,0.62035912,104910.0,104900.0,1.1498788]
[1749266763474,0.62035912,104910.0,104900.0,1.1518788]
[1749266763701,0.62989109,104910.0,104900.0,1.14234655]
[1749266763874,0.62989109,104910.0,104900.0,1.15387889]
[1749266764910,0.82053068,104910.0,104900.0,1.15387889]
[1749266765113,0.82053068,104910.0,104900.0,1.14434655]
[1749266765330,0.81099916,104910.0,104900.0,1.13481412]
[1749266766022,0.62035957,104910.0,104900.0,1.14434646]
[1749266768173,0.81099916,104910.0,104900.0,1.14434655]
[1749266768613,0.62035957,104910.0,104900.0,1.15387889]
[1749266769554,0.62035957,104910.0,104900.0,1.15387826]
[1749266771511,0.81099916,104910.0,104900.0,1.13481367]
[1749266771962,0.81099916,104910.0,104900.0,1.14434601]
[1749266772157,1.36174544,104910.0,104900.0,1.14394601]
[1749266772379,0.81099916,104910.0,104900.0,1.14394601]
[1749266772766,0.80146737,104910.0,104900.0,1.12488178]
[1749266772971,0.80146737,104910.0,104900.0,1.13441448]
[1749266773355,1.35221365,104910.0,104900.0,1.13441448]
[1749266774968,0.25072109,104910.0,104900.0,1.14394709]
[1749266775189,0.80146737,104910.0,104900.0,1.15347916]
[1749266775389,0.80146737,104910.0,104900.0,0.83757421]
[1749266775633,0.80146737,104910.0,104900.0,1.14386673]
[1749266775830,1.35221365,104910.0,104900.0,1.14386673]
[1749266776377,1.34268177,104910.0,104900.0,1.1152689]
[1749266776508,1.3331498,104910.0,104900.0,0.92465288]
[1749266777543,1.3331498,104910.0,104900.0,1.11531064]
[1749266777742,1.3331498,104910.0,104900.0,1.12484343]
[1749266778976,1.3331498,104910.0,104900.0,0.91512]
[1749266779997,1.3331498,104910.0,104900.0,0.91312]
[1749266780245,1.3331498,104910.0,104900.0,0.91112]
[1749266780396,1.3331498,104910.0,104900.0,0.91212]
[1749266780805,1.3331498,104910.0,104900.0,0.92165288]
[1749266781277,1.33194362,104910.0,104900.0,0.92165288]
[1749266781674,1.33194362,104910.0,104900.0,1.12284343]
[1749266782459,1.33194362,104910.0,104900.0,0.91312]
[1749266782680,0.04101765,104910.0,104900.0,1.13237595]
[1749266782889,0.06961194,104910.0,104900.0,1.1419082]
[1749266783101,0.61022343,104910.0,104900.0,1.1419082]
[1749266783314,0.5944373,104910.0,104900.0,1.1419082]
[1749266783522,0.62006909,104910.0,104900.0,1.1419082]
[1749266783942,0.62960097,104910.0,104900.0,1.1419082]
[1749266784478,0.62006909,104910.0,104900.0,1.1419082]
[1749266784687,0.06039411,104910.0,104900.0,1.1419082]
[1749266784827,0.62245034,104910.0,104900.0,1.1419082]
[1749266785030,0.62960097,104910.0,104900.0,1.1419082]
[1749266785288,0.620069,104910.0,104900.0,1.1419082]
[1749266786041,0.60100578,104910.0,104900.0,1.1419082]
[1749266786480,0.61053739,104910.0,104900.0,1.1419082]
[1749266786680,0.60100578,104910.0,104900.0,1.1419082]
[1749266787136,0.0318,104910.0,104900.0,1.23830768]
[1749266787462,0.55014319,104910.0,104900.0,1.23830768]
[1749266788068,0.56534319,104910.0,104900.0,1.23830768]
[1749266788385,0.57487435,104910.0,104900.0,1.23830768]
[1749266788526,0.56534319,104910.0,104900.0,1.23830768]
[1749266789606,0.57487444,104910.0,104900.0,1.23830768]
[1749266789808,0.57487435,104910.0,104900.0,1.23830768]
[1749266790350,0.56534319,104910.0,104900.0,1.23830768]
[1749266791104,0.58054319,104910.0,104900.0,1.23830768]
[1749266792254,0.59007453,104910.0,104900.0,1.23830768]
[1749266792425,0.58054319,104910.0,104900.0,1.23830768]
[1749266792882,0.02571252,104920.0,104910.0,0.21923469]
[1749266793089,0.40227118,104930.0,104920.0,0.2001523]
[1749266793288,0.40227118,104930.0,104920.0,0.5036723]
[1749266793289,0.9679011,104930.0,104920.0,0.5036723]
[1749266793493,1.69911775,104930.0,104920.0,0.5036723]
[1749266793701,1.14075546,104930.0,104920.0,0.51320309]
[1749266794501,1.14075546,104930.0,104920.0,0.5036723]
[1749266794697,1.14175546,104930.0,104920.0,0.5036723]
[1749266795690,0.59261227,104930.0,104920.0,0.5036723]
[1749266795897,1.14275546,104930.0,104920.0,0.52273379]
[1749266797189,1.14275546,104930.0,104920.0,0.51320309]
[1749266797395,1.14275546,104930.0,104920.0,0.60952309]
[1749266799092,0.59261227,104930.0,104920.0,0.60952309]
[1749266799284,1.14275546,104930.0,104920.0,0.60952309]
[1749266799499,1.14275546,104930.0,104920.0,0.5999923]
[1749266800218,1.14275546,104930.0,104920.0,0.59046142]
[1749266800375,1.13322557,104930.0,104920.0,0.39984]
[1749266800777,1.13322557,104930.0,104920.0,0.40937107]
[1749266802225,1.13322557,104930.0,104920.0,0.65661107]
[1749266804175,5.60088125,104930.0,104920.0,0.6464]
[1749266804589,5.60757349,104930.0,104920.0,0.6464]
[1749266804724,5.63041757,104930.0,104920.0,0.6464]
[1749266804928,5.63041924,104930.0,104920.0,0.6464]
[1749266805125,4.53013286,104930.0,104920.0,0.6464]
[1749266805373,5.63041924,104930.0,104920.0,0.6464]
[1749266805531,5.63041913,104930.0,104920.0,0.6464]
[1749266805900,5.63041948,104930.0,104920.0,0.6464]
[1749266807695,5.60588068,104930.0,104920.0,0.6464]
[1749266807905,5.63042221,104930.0,104920.0,0.6464]
[1749266808543,5.62372907,104930.0,104920.0,0.6464]
[1749266808660,5.63042233,104930.0,104920.0,0.6464]
[1749266809643,1.69168699,104930.0,104920.0,0.6464]
[1749266810054,1.6738386,104930.0,104920.0,0.6464]
[1749266810190,1.69168725,104930.0,104920.0,0.6464]
[1749266811340,1.6738386,104930.0,104920.0,0.6464]
[1749266811486,1.69168976,104930.0,104920.0,0.6464]
[1749266811686,1.6738386,104930.0,104920.0,0.6464]
[1749266811888,1.69169239,104930.0,104920.0,0.6464]
[1749266812509,1.1415492,104930.0,104920.0,0.65593107]
[1749266812714,1.69169239,104930.0,104920.0,0.65593107]
[1749266813008,1.6738386,104930.0,104920.0,0.65593107]
[1749266813350,1.69169303,104930.0,104920.0,0.65593107]
[1749266813568,1.69169308,104930.0,104920.0,0.65593107]
[1749266813767,1.6738386,104930.0,104920.0,0.65593107]
[1749266814041,1.69169308,104930.0,104920.0,0.65593107]
[1749266814493,1.69169308,104930.0,104920.0,0.6464]
[1749266815192,1.6738386,104930.0,104920.0,0.6464]
[1749266815349,1.69169495,104930.0,104920.0,0.6464]
[1749266816137,1.69169558,104930.0,104920.0,0.6464]
[1749266816334,0.5914092,104930.0,104920.0,0.6464]
[1749266816575,1.69169558,104930.0,104920.0,0.6464]
[1749266818606,1.69169945,104930.0,104920.0,0.6464]
[1749266819271,1.69169945,104930.0,104920.0,0.65593107]
[1749266820122,1.69169945,104930.0,104920.0,0.66546205]
[1749266820335,1.69170135,104930.0,104920.0,0.66546205]
[1749266820897,1.6738386,104930.0,104920.0,0.66546205]
[1749266821134,1.69170135,104930.0,104920.0,0.85608347]
[1749266821345,1.6738386,104930.0,104920.0,0.85608347]
[1749266821558,1.69170135,104930.0,104920.0,0.85608347]
[1749266821779,1.69170135,104930.0,104920.0,0.84655249]
[1749266822929,1.69170376,104930.0,104920.0,0.84655249]
[1749266823528,1.69170376,104930.0,104920.0,0.6464]
[1749266823745,1.69170448,104930.0,104920.0,0.6464]
[1749266824487,1.71457334,104930.0,104920.0,0.6464]
[1749266824668,1.72127315,104930.0,104920.0,0.6464]
[1749266825290,1.69840458,104930.0,104920.0,0.6464]
[1749266826134,1.69840484,104930.0,104920.0,0.6464]
[1749266826275,1.72127474,104930.0,104920.0,0.6464]
[1749266826478,1.69670781,104930.0,104920.0,0.6464]
[1749266826685,1.72127474,104930.0,104920.0,0.6464]
[1749266826889,1.69840553,104930.0,104920.0,0.6464]
[1749266827099,1.69170546,104930.0,104920.0,0.6464]
[1749266827303,1.72127501,104930.0,104920.0,0.6464]
[1749266828112,1.72127508,104930.0,104920.0,0.6464]
[1749266828301,1.70340822,104930.0,104920.0,0.6464]
[1749266828500,1.69670808,104930.0,104920.0,0.6464]
[1749266828904,1.72127528,104930.0,104920.0,0.6464]
[1749266829682,1.72127571,104930.0,104920.0,0.6464]
[1749266830160,1.72127582,104930.0,104920.0,0.6464]
[1749266830363,1.70340838,104930.0,104920.0,0.6464]
[1749266830623,1.69670808,104930.0,104920.0,0.6464]
[1749266830829,1.72127586,104930.0,104920.0,0.6464]
[1749266831120,1.71457556,104930.0,104920.0,0.6464]
[1749266831343,1.72127605,104930.0,104920.0,0.6464]
[1749266831686,1.69670808,104930.0,104920.0,0.6464]
[1749266831901,1.72127655,104930.0,104920.0,0.6464]
[1749266833518,1.69670808,104930.0,104920.0,0.6464]
[1749266833677,1.7212778,104930.0,104920.0,0.6464]
[1749266833889,1.72127821,104930.0,104920.0,0.6464]
[1749266834666,1.7212795,104930.0,104920.0,0.6464]
[1749266835443,1.72127957,104930.0,104920.0,0.6464]
[1749266835804,1.72127982,104930.0,104920.0,0.6464]
[1749266836695,1.72127987,104930.0,104920.0,0.6464]
[1749266837256,1.72128013,104930.0,104920.0,0.6464]
[1749266837641,1.70340995,104930.0,104920.0,0.6464]
[1749266838193,1.7212816,104930.0,104920.0,0.6464]
[1749266839027,0.23222855,104880.0,104870.0,0.34190664]
[1749266839243,0.23222855,104880.0,104870.0,0.64212]
[1749266839857,1.33251493,104880.0,104870.0,0.2472]
[1749266840082,1.33251493,104880.0,104870.0,0.64208]
[1749266840291,1.35036624,104880.0,104870.0,0.64208]
[1749266840498,1.35136642,104880.0,104870.0,0.64212789]
[1749266840699,1.35136634,104880.0,104870.0,0.64220789]
[1749266840957,1.35236634,104880.0,104870.0,0.64220789]
[1749266841367,1.35310379,104880.0,104870.0,0.64220789]
[1749266841551,1.35310411,104880.0,104870.0,0.64220789]
[1749266841760,1.33525217,104880.0,104870.0,0.64220789]
[1749266841973,1.35310411,104880.0,104870.0,0.64220789]
[1749266842553,1.33525217,104880.0,104870.0,0.64220789]
[1749266842967,1.34485556,104880.0,104870.0,0.64220789]
[1749266855797,0.24383194,104880.0,104870.0,0.64220789]
[1749266856297,1.34485556,104880.0,104870.0,0.64220789]
[1749266859443,1.34485556,104880.0,104870.0,0.65174341]
[1749266860236,1.33532113,104880.0,104870.0,0.64220789]
[1749266861421,1.33522319,104880.0,104870.0,0.64220789]
[1749266861629,1.88568603,104880.0,104870.0,0.64220789]
[1749266862793,1.33522319,104880.0,104870.0,0.64220789]
[1749266863390,1.33522319,104880.0,104870.0,0.6517435]
[1749266864874,0.23429751,104880.0,104870.0,0.6517435]
[1749266865057,1.33522319,104880.0,104870.0,0.6517435]
[1749266866179,1.35308031,104880.0,104870.0,0.6517435]
[1749266866916,1.35308031,104880.0,104870.0,0.64220789]
[1749266867118,1.33522319,104880.0,104870.0,0.64220789]
[1749266867561,1.35308152,104880.0,104870.0,0.64220789]
[1749266867710,1.33522319,104880.0,104870.0,0.64220789]
[1749266868061,1.35308152,104880.0,104870.0,0.64220789]
[1749266868693,1.37596643,104880.0,104870.0,0.64220789]
[1749266868894,1.37596752,104880.0,104870.0,0.64220789]
[1749266869507,1.3581081,104880.0,104870.0,0.64220789]
[1749266869708,1.3759893,104880.0,104870.0,0.64220789]
[1749266870164,1.3759893,104880.0,104870.0,0.6517435]
[1749266871248,1.3581081,104880.0,104870.0,0.6517435]
[1749266871435,1.37598895,104880.0,104870.0,0.6517435]
[1749266872235,1.37598874,104880.0,104870.0,0.6517435]
[1749266872922,1.3581081,104880.0,104870.0,0.6517435]
[1749266873160,1.37598867,104880.0,104870.0,0.6517435]
[1749266874557,1.35310376,104880.0,104870.0,0.6517435]
[1749266875060,1.375991,104880.0,104870.0,0.6517435]
[1749266875359,1.35310376,104880.0,104870.0,0.6517435]
[1749266875560,1.35310376,104880.0,104870.0,0.85199133]
[1749266875763,1.35310363,104880.0,104870.0,0.85199133]
[1749266876442,1.35310369,104880.0,104870.0,0.85199133]
[1749266876988,1.33522319,104880.0,104870.0,0.85199133]
[1749266877139,1.3531037,104880.0,104870.0,0.85199133]
[1749266878418,1.33522319,104880.0,104870.0,0.86152676]
[1749266878703,1.35310389,104880.0,104870.0,0.86152676]
[1749266880250,1.35310428,104880.0,104870.0,0.86152676]
[1749266880451,1.33522319,104880.0,104870.0,0.86152676]
[1749266880655,1.33522319,104880.0,104870.0,0.8710621]
[1749266880799,1.35310428,104880.0,104870.0,0.8710621]
[1749266881504,1.36263898,104880.0,104870.0,0.8710621]
[1749266881796,1.36263991,104880.0,104870.0,0.8710621]
[1749266882034,1.34475789,104880.0,104870.0,0.8710621]
[1749266882239,1.36263991,104880.0,104870.0,0.8710621]
[1749266883445,1.34475789,104880.0,104870.0,0.8710621]
[1749266883637,1.36264134,104880.0,104870.0,0.8710621]
[1749266884221,1.34475789,104880.0,104870.0,0.8710621]
[1749266884423,1.36264134,104880.0,104870.0,0.8710621]
[1749266885003,1.36222596,104880.0,104870.0,0.8710621]
[1749266885236,1.36222607,104880.0,104870.0,0.88059735]
[1749266885443,1.3717605,104880.0,104870.0,0.8805969]
[1749266885677,1.37176326,104880.0,104870.0,0.8805969]
[1749266885884,1.37176315,104880.0,104870.0,0.8805969]
[1749266886238,1.35387694,104880.0,104870.0,0.8805969]
[1749266886488,1.37176311,104880.0,104870.0,0.8805969]
[1749266887458,1.35387694,104880.0,104870.0,0.8805969]
[1749266887667,1.37176294,104880.0,104870.0,0.8805969]
[1749266888089,1.37176294,104880.0,104870.0,0.87106174]
[1749266888837,1.35387694,104880.0,104870.0,0.87106174]
[1749266889038,1.37176272,104880.0,104870.0,0.87106174]